DepartmentFamily,Entity,Date,ExpenseType,ExpenseArea,Supplier,Transaction Number,Amount,VAT Registration Number
BEIS,The Insolvency Service,01/02/2021,Travel & Subsistence,Investigations & Enforcement Services,Staff Payment,900016728,258.00,
BEIS,The Insolvency Service,01/02/2021,Travel & Subsistence,Official Receiver Services,Staff Payment,900016743,3.43,
BEIS,The Insolvency Service,01/02/2021,Travel & Subsistence,Official Receiver Services,Staff Payment,900016743,26.99,
BEIS,The Insolvency Service,01/02/2021,Travel & Subsistence,Official Receiver Services,Staff Payment,900016740,258.00,
BEIS,The Insolvency Service,01/02/2021,Travel & Subsistence,Official Receiver Services,Staff Payment,900016752,0.85,
BEIS,The Insolvency Service,01/02/2021,Travel & Subsistence,Official Receiver Services,Staff Payment,900016752,1.70,
BEIS,The Insolvency Service,01/02/2021,Travel & Subsistence,Official Receiver Services,Staff Payment,900016752,1.29,
BEIS,The Insolvency Service,01/02/2021,Travel & Subsistence,Official Receiver Services,Staff Payment,900016752,2.55,
BEIS,The Insolvency Service,01/02/2021,Travel & Subsistence,Official Receiver Services,Staff Payment,900016752,1.83,
BEIS,The Insolvency Service,01/02/2021,Travel & Subsistence,Official Receiver Services,Staff Payment,900016752,3.40,
BEIS,The Insolvency Service,01/02/2021,Travel & Subsistence,Projects,Staff Payment,900016746,286.20,
BEIS,The Insolvency Service,01/02/2021,Travel & Subsistence,Projects,Staff Payment,900016746,5.00,
BEIS,The Insolvency Service,01/02/2021,Travel & Subsistence,Projects,Staff Payment,900016746,5.00,
BEIS,The Insolvency Service,01/02/2021,Travel & Subsistence,Projects,Staff Payment,900016746,5.00,
BEIS,The Insolvency Service,01/02/2021,Travel & Subsistence,Projects,Staff Payment,900016746,15.00,
BEIS,The Insolvency Service,01/02/2021,Travel & Subsistence,Projects,Staff Payment,900016746,6.70,
BEIS,The Insolvency Service,01/02/2021,Travel & Subsistence,Official Receiver Services,Staff Payment,900016750,1.83,
BEIS,The Insolvency Service,01/02/2021,Travel & Subsistence,Official Receiver Services,Staff Payment,900016750,24.00,
BEIS,The Insolvency Service,01/02/2021,Travel & Subsistence,Official Receiver Services,Staff Payment,900016750,13.48,
BEIS,The Insolvency Service,01/02/2021,Travel & Subsistence,Investigations & Enforcement Services,Staff Payment,900016741,6.20,
BEIS,The Insolvency Service,01/02/2021,Travel & Subsistence,Investigations & Enforcement Services,Staff Payment,900016741,3.49,
BEIS,The Insolvency Service,01/02/2021,Travel & Subsistence,Digital Technology Services,Staff Payment,900016742,8.83,
BEIS,The Insolvency Service,01/02/2021,Travel & Subsistence,Digital Technology Services,Staff Payment,900016742,3.02,
BEIS,The Insolvency Service,01/02/2021,Travel & Subsistence,Digital Technology Services,Staff Payment,900016742,71.82,
BEIS,The Insolvency Service,01/02/2021,Travel & Subsistence,Digital Technology Services,Staff Payment,900016742,72.14,
BEIS,The Insolvency Service,01/02/2021,Travel & Subsistence,Finance & Commercial,Staff Payment,900016744,112.00,
BEIS,The Insolvency Service,01/02/2021,Travel & Subsistence,Investigations & Enforcement Services,Staff Payment,900016692,2.25,
BEIS,The Insolvency Service,01/02/2021,Travel & Subsistence,Finance & Commercial,Staff Payment,900016748,115.00,
BEIS,The Insolvency Service,01/02/2021,Travel & Subsistence,Finance & Commercial,Staff Payment,900016748,115.00,
BEIS,The Insolvency Service,01/02/2021,Travel & Subsistence,Official Receiver Services,Staff Payment,900016737,17.13,
BEIS,The Insolvency Service,02/02/2021,ICT,Digital Technology Services,Advanced 365 Limited,300026299,178204.61,927547983
BEIS,The Insolvency Service,02/02/2021,Estates - Property,Finance & Commercial,Department For Work & Pensions,300026637,51239.98,888815554
BEIS,The Insolvency Service,02/02/2021,Estates - Property,Finance & Commercial,Middlesbrough Council,300026634,344.89,734213854
BEIS,The Insolvency Service,02/02/2021,Staff Costs - Non-Perms,Digital Technology Services,Nomensa Limited,300026589,17010.00,771727411
BEIS,The Insolvency Service,02/02/2021,Travel & Subsistence,Investigations & Enforcement Services,Staff Payment,900016758,3.99,
BEIS,The Insolvency Service,02/02/2021,Travel & Subsistence,Investigations & Enforcement Services,Staff Payment,900016749,10.00,
BEIS,The Insolvency Service,02/02/2021,Travel & Subsistence,Official Receiver Services,Staff Payment,900016398,123.95,
BEIS,The Insolvency Service,02/02/2021,Travel & Subsistence,Business Service Division,Staff Payment,900016754,89.00,
BEIS,The Insolvency Service,02/02/2021,Travel & Subsistence,Business Service Division,Staff Payment,900016754,150.00,
BEIS,The Insolvency Service,02/02/2021,Travel & Subsistence,Investigations & Enforcement Services,Staff Payment,900016753,16.99,
BEIS,The Insolvency Service,02/02/2021,Travel & Subsistence,Investigations & Enforcement Services,Staff Payment,900016721,1.80,
BEIS,The Insolvency Service,02/02/2021,Travel & Subsistence,Investigations & Enforcement Services,Staff Payment,900016721,21.76,
BEIS,The Insolvency Service,02/02/2021,HR,People & Capability,Vita Health Group,300026635,481.75,
BEIS,The Insolvency Service,03/02/2021,"Legal, Translation & Consultancy","Strategy, Policy & Analysis",Ashurst LLP,300026636,28746.05,108213648
BEIS,The Insolvency Service,03/02/2021,HR,People & Capability,Cabinet Office,300026598,225.00,888801080
BEIS,The Insolvency Service,03/02/2021,HR,People & Capability,Cabinet Office,300026598,1150.00,888801080
BEIS,The Insolvency Service,03/02/2021,Estates - Property,Finance & Commercial,Cbre Limited,300026645,442.03,
BEIS,The Insolvency Service,03/02/2021,HR,People & Capability,Enei Employers Network For Equality And Inclusion,300026638,5400.00,83091447
BEIS,The Insolvency Service,03/02/2021,Legal - Costs of Civil Litigation Disqualifications,Legal Services Division,Pricewaterhouse Coopers LLP,300026652,346714.80,243823957
BEIS,The Insolvency Service,03/02/2021,Estates - Property,Business Service Division,Restore Datashred (Data Solutions 2016 Ltd T/A Restore Data),300026661,12.00,240193143
BEIS,The Insolvency Service,03/02/2021,Estates - Property,Business Service Division,Restore Datashred (Data Solutions 2016 Ltd T/A Restore Data),300026662,71.52,240193143
BEIS,The Insolvency Service,03/02/2021,Estates - Property,Business Service Division,Restore Datashred (Data Solutions 2016 Ltd T/A Restore Data),300026663,12.00,240193143
BEIS,The Insolvency Service,03/02/2021,"Printing, Stationary & Postage",Business Service Division,Royal Mail,300026651,303.35,243170002
BEIS,The Insolvency Service,03/02/2021,Staff Costs - Non-Perms,Digital Technology Services,SmartSourcing,300026474,1404.00,788507869
BEIS,The Insolvency Service,03/02/2021,Travel & Subsistence,Investigations & Enforcement Services,Staff Payment,900016755,2.69,
BEIS,The Insolvency Service,03/02/2021,Travel & Subsistence,Investigations & Enforcement Services,Staff Payment,900016755,17.97,
BEIS,The Insolvency Service,03/02/2021,Travel & Subsistence,Official Receiver Services,Staff Payment,900016731,11.46,
BEIS,The Insolvency Service,03/02/2021,Travel & Subsistence,Official Receiver Services,Staff Payment,900016756,30.60,
BEIS,The Insolvency Service,03/02/2021,Travel & Subsistence,Official Receiver Services,Staff Payment,900016751,59.99,
BEIS,The Insolvency Service,03/02/2021,Travel & Subsistence,Business Service Division,Staff Payment,900016760,15.00,
BEIS,The Insolvency Service,03/02/2021,Off-Site Storage,Official Receiver Services,Ukcloud Ltd,300026653,21226.28,172647982
BEIS,The Insolvency Service,04/02/2021,Legal - Costs of Civil Litigation Disqualifications,Legal Services Division,18 St John Street Chambers,300026711,1080.00,826858289
BEIS,The Insolvency Service,04/02/2021,Legal - Costs of Civil Litigation Disqualifications,Legal Services Division,Exchange Chambers,300026718,797.50,
BEIS,The Insolvency Service,04/02/2021,Estates - Property,Finance & Commercial,Mapeley STEPS Limited (Chatham Office ),300026657,1483.63,769771563
BEIS,The Insolvency Service,04/02/2021,Legal - Costs of Civil Litigation Disqualifications,Legal Services Division,5 Stone Buildings,300026715,420.00,998486332
BEIS,The Insolvency Service,04/02/2021,"Printing, Stationary & Postage",Official Receiver Services,Natural England,300026700,963.03,551065074
BEIS,The Insolvency Service,04/02/2021,Legal - Costs of Criminal Prosecutions and Advice,Legal Services Division,Police And Crime Commissioner For Hampshire,300026712,25.00,
BEIS,The Insolvency Service,04/02/2021,Estates - Property,Business Service Division,Restore Datashred (Data Solutions 2016 Ltd T/A Restore Data),300026659,239.92,240193143
BEIS,The Insolvency Service,04/02/2021,Estates - Property,Business Service Division,Restore Datashred (Data Solutions 2016 Ltd T/A Restore Data),300026660,48.00,240193143
BEIS,The Insolvency Service,04/02/2021,Travel & Subsistence,Investigations & Enforcement Services,Staff Payment,900016769,3.95,
BEIS,The Insolvency Service,04/02/2021,Travel & Subsistence,Investigations & Enforcement Services,Staff Payment,900016745,5.00,
BEIS,The Insolvency Service,04/02/2021,Travel & Subsistence,Investigations & Enforcement Services,Staff Payment,900016745,5.40,
BEIS,The Insolvency Service,04/02/2021,Travel & Subsistence,Investigations & Enforcement Services,Staff Payment,900016745,9.45,
BEIS,The Insolvency Service,04/02/2021,Travel & Subsistence,Investigations & Enforcement Services,Staff Payment,900016745,3.60,
BEIS,The Insolvency Service,04/02/2021,Travel & Subsistence,Investigations & Enforcement Services,Staff Payment,900016745,0.45,
BEIS,The Insolvency Service,04/02/2021,Travel & Subsistence,Investigations & Enforcement Services,Staff Payment,900016745,1.80,
BEIS,The Insolvency Service,04/02/2021,Travel & Subsistence,Investigations & Enforcement Services,Staff Payment,900016745,12.15,
BEIS,The Insolvency Service,04/02/2021,Travel & Subsistence,Investigations & Enforcement Services,Staff Payment,900016745,11.25,
BEIS,The Insolvency Service,04/02/2021,Travel & Subsistence,Investigations & Enforcement Services,Staff Payment,900016745,4.50,
BEIS,The Insolvency Service,04/02/2021,Travel & Subsistence,Investigations & Enforcement Services,Staff Payment,900016759,6.85,
BEIS,The Insolvency Service,04/02/2021,Travel & Subsistence,Investigations & Enforcement Services,Staff Payment,900016759,9.99,
BEIS,The Insolvency Service,04/02/2021,Travel & Subsistence,Investigations & Enforcement Services,Staff Payment,900016762,17.99,
BEIS,The Insolvency Service,04/02/2021,Travel & Subsistence,Finance & Commercial,Staff Payment,900016763,395.00,
BEIS,The Insolvency Service,04/02/2021,Travel & Subsistence,Official Receiver Services,Staff Payment,900016761,76.99,
BEIS,The Insolvency Service,04/02/2021,Travel & Subsistence,Investigations & Enforcement Services,Staff Payment,900016764,21.15,
BEIS,The Insolvency Service,04/02/2021,Travel & Subsistence,Investigations & Enforcement Services,Staff Payment,900016764,21.15,
BEIS,The Insolvency Service,04/02/2021,Travel & Subsistence,Investigations & Enforcement Services,Staff Payment,900016764,20.70,
BEIS,The Insolvency Service,04/02/2021,Travel & Subsistence,Investigations & Enforcement Services,Staff Payment,900016764,20.70,
BEIS,The Insolvency Service,04/02/2021,Travel & Subsistence,Investigations & Enforcement Services,Staff Payment,900016764,2.66,
BEIS,The Insolvency Service,04/02/2021,Travel & Subsistence,Investigations & Enforcement Services,Staff Payment,900016764,2.66,
BEIS,The Insolvency Service,04/02/2021,Travel & Subsistence,Investigations & Enforcement Services,Staff Payment,900016764,2.93,
BEIS,The Insolvency Service,04/02/2021,Travel & Subsistence,Investigations & Enforcement Services,Staff Payment,900016764,2.93,
BEIS,The Insolvency Service,04/02/2021,Travel & Subsistence,Investigations & Enforcement Services,Staff Payment,900016764,3.50,
BEIS,The Insolvency Service,04/02/2021,Travel & Subsistence,Investigations & Enforcement Services,Staff Payment,900016764,3.50,
BEIS,The Insolvency Service,04/02/2021,Legal - Costs of Criminal Prosecutions and Advice,Legal Services Division,SUNDRY SUPPLIER,300026697,1157.32,
BEIS,The Insolvency Service,04/02/2021,Legal - Costs of Criminal Prosecutions and Advice,Legal Services Division,SUNDRY SUPPLIER,300026698,914.58,
BEIS,The Insolvency Service,04/02/2021,Estates - Property,Projects,Symity LTD,300026706,7045.86,192278875
BEIS,The Insolvency Service,05/02/2021,ICT,Digital Technology Services,Advanced 365 Limited,300026119,4113.91,927547983
BEIS,The Insolvency Service,05/02/2021,ICT,Digital Technology Services,Advanced 365 Limited,300026721,3535.97,927547983
BEIS,The Insolvency Service,05/02/2021,Staff Costs - Non-Perms,Finance & Commercial,ALEXANDER MANN SOLUTIONS,300026703,64141.34,7444926120
BEIS,The Insolvency Service,05/02/2021,Legal - Costs of Civil Litigation Disqualifications,Legal Services Division,Burness Paull & Williamsons Solicitors,300026754,19.50,216218532
BEIS,The Insolvency Service,05/02/2021,Investigation & Enforcement,Official Receiver Services,Burness Paull & Williamsons Solicitors,300026756,1148.16,216218532
BEIS,The Insolvency Service,05/02/2021,Off-Site Storage,Official Receiver Services,Crown Records Management,300026719,860.34,902181658
BEIS,The Insolvency Service,05/02/2021,Off-Site Storage,Official Receiver Services,File Centre,300026749,300.90,885439474
BEIS,The Insolvency Service,05/02/2021,Other Costs,Official Receiver Services,Insolvency Service,300026710,308.00,
BEIS,The Insolvency Service,05/02/2021,Legal - Costs of Recovering Civil Costs Awarded,Legal Services Division,Marston Group Limited,300026724,75.00,795928947
BEIS,The Insolvency Service,05/02/2021,Legal - Costs of Recovering Civil Costs Awarded,Legal Services Division,Marston Group Limited,300026750,75.00,795928947
BEIS,The Insolvency Service,05/02/2021,Legal - Costs of Civil Litigation Disqualifications,Legal Services Division,Mills & Reeve LLP,300026758,379.50,104834588
BEIS,The Insolvency Service,05/02/2021,Legal - Costs of Civil Litigation Disqualifications,Legal Services Division,Mills & Reeve LLP,300026759,6776.60,104834588
BEIS,The Insolvency Service,05/02/2021,ICT,Digital Technology Services,Netcompany UK Ltd,300026704,2292.00,171809009
BEIS,The Insolvency Service,05/02/2021,ICT,Digital Technology Services,Netcompany UK Ltd,300026705,16258.80,171809009
BEIS,The Insolvency Service,05/02/2021,Off-Site Storage,Official Receiver Services,Purdie Worldwide,300026717,868.64,208569880
BEIS,The Insolvency Service,05/02/2021,ICT,Digital Technology Services,Ricoh Uk Limited,300026720,90.00,
BEIS,The Insolvency Service,05/02/2021,Legal - Costs of Civil Litigation Disqualifications,Legal Services Division,Shepherd & Wedderburn Ws (English Cases),300026762,1020.10,890559386
BEIS,The Insolvency Service,05/02/2021,Legal - Costs of Civil Litigation Winding Up,Investigations & Enforcement Services,Shepherd & Wedderburn Ws (English Cases),300026763,10.42,890559386
BEIS,The Insolvency Service,05/02/2021,Travel & Subsistence,Projects,Staff Payment,900016770,152.10,
BEIS,The Insolvency Service,05/02/2021,Travel & Subsistence,Projects,Staff Payment,900016770,4.09,
BEIS,The Insolvency Service,05/02/2021,Travel & Subsistence,Official Receiver Services,Staff Payment,900016724,55.00,
BEIS,The Insolvency Service,05/02/2021,Legal - Costs of Civil Litigation Disqualifications,Legal Services Division,SUNDRY SUPPLIER,300026699,108.00,
BEIS,The Insolvency Service,05/02/2021,Estates - Property,Projects,Symity LTD,300026714,4562.88,192278875
BEIS,The Insolvency Service,05/02/2021,Other Costs,Official Receiver Services,The Stationery Office Ltd,300026682,87.84,662774703
BEIS,The Insolvency Service,05/02/2021,Other Costs,Official Receiver Services,The Stationery Office Ltd,300026683,87.84,662774703
BEIS,The Insolvency Service,08/02/2021,Staff Costs - Non-Perms,"Strategy, Policy & Analysis",April Strategy LLP,300026725,53760.00,927406420
BEIS,The Insolvency Service,08/02/2021,Estates - Property,Finance & Commercial,Birmingham City Council,300026767,6232.00,
BEIS,The Insolvency Service,08/02/2021,ICT,Digital Technology Services,Ee Ltd,300026790,21713.83,771592016
BEIS,The Insolvency Service,08/02/2021,ICT,Digital Technology Services,Ee Ltd,300026792,891.60,771592016
BEIS,The Insolvency Service,08/02/2021,ICT,Digital Technology Services,Experian Ltd,300026742,7560.00,887133593
BEIS,The Insolvency Service,08/02/2021,Legal - Outsourced Investigation,Investigations & Enforcement Services,Mills & Reeve LLP,300026757,4661.90,104834588
BEIS,The Insolvency Service,08/02/2021,ICT,Investigations & Enforcement Services/Legal Services Division,Netcompany UK Ltd,300026702,4672.80,171809009
BEIS,The Insolvency Service,08/02/2021,ICT,Digital Technology Services,Netcompany UK Ltd,300026707,27763.20,171809009
BEIS,The Insolvency Service,08/02/2021,Estates - Property,Finance & Commercial,Plymouth City Council (Rent),300026745,24009.00,
BEIS,The Insolvency Service,08/02/2021,Estates - Property,Finance & Commercial,Plymouth City Council (Rent),300026747,1020.35,
BEIS,The Insolvency Service,08/02/2021,Estates - Property,Finance & Commercial,Plymouth City Council (Rent),300026748,24009.00,
BEIS,The Insolvency Service,08/02/2021,Travel & Subsistence,Business Service Division,Staff Payment,900016782,39.99,
BEIS,The Insolvency Service,08/02/2021,Travel & Subsistence,Investigations & Enforcement Services,Staff Payment,900016773,10.00,
BEIS,The Insolvency Service,08/02/2021,Travel & Subsistence,Official Receiver Services,Staff Payment,900016781,0.96,
BEIS,The Insolvency Service,08/02/2021,Travel & Subsistence,Official Receiver Services,Staff Payment,900016781,1.53,
BEIS,The Insolvency Service,08/02/2021,Travel & Subsistence,Official Receiver Services,Staff Payment,900016781,5.06,
BEIS,The Insolvency Service,08/02/2021,Travel & Subsistence,Investigations & Enforcement Services,Staff Payment,900016776,34.20,
BEIS,The Insolvency Service,08/02/2021,Travel & Subsistence,Investigations & Enforcement Services,Staff Payment,900016776,49.50,
BEIS,The Insolvency Service,08/02/2021,Travel & Subsistence,Investigations & Enforcement Services,Staff Payment,900016776,48.15,
BEIS,The Insolvency Service,08/02/2021,Travel & Subsistence,Investigations & Enforcement Services,Staff Payment,900016776,5.00,
BEIS,The Insolvency Service,08/02/2021,Travel & Subsistence,Investigations & Enforcement Services,Staff Payment,900016778,5.00,
BEIS,The Insolvency Service,08/02/2021,Travel & Subsistence,Investigations & Enforcement Services,Staff Payment,900016778,27.00,
BEIS,The Insolvency Service,08/02/2021,Travel & Subsistence,Investigations & Enforcement Services,Staff Payment,900016778,17.55,
BEIS,The Insolvency Service,08/02/2021,Travel & Subsistence,Investigations & Enforcement Services,Staff Payment,900016778,19.80,
BEIS,The Insolvency Service,08/02/2021,Travel & Subsistence,Investigations & Enforcement Services,Staff Payment,900016779,44.10,
BEIS,The Insolvency Service,08/02/2021,Travel & Subsistence,Investigations & Enforcement Services,Staff Payment,900016779,44.10,
BEIS,The Insolvency Service,08/02/2021,Travel & Subsistence,Investigations & Enforcement Services,Staff Payment,900016779,5.00,
BEIS,The Insolvency Service,08/02/2021,Travel & Subsistence,Investigations & Enforcement Services,Staff Payment,900016780,1.92,
BEIS,The Insolvency Service,08/02/2021,Travel & Subsistence,Investigations & Enforcement Services,Staff Payment,900016738,4.50,
BEIS,The Insolvency Service,08/02/2021,Travel & Subsistence,Investigations & Enforcement Services,Staff Payment,900016738,6.75,
BEIS,The Insolvency Service,08/02/2021,Legal - Outsourced Investigation,Investigations & Enforcement Services,Tlt Llp,300026781,23361.00,3574583240
BEIS,The Insolvency Service,08/02/2021,Legal - Costs of Civil Litigation Winding Up,Investigations & Enforcement Services,Tlt Llp,300026785,14111.90,3574583240
BEIS,The Insolvency Service,08/02/2021,ICT,Digital Technology Services,Trustmarque Solutions Ltd,300026744,1915.34,727348615
BEIS,The Insolvency Service,09/02/2021,ICT,Business Service Division,Bottomline Technologies,300026787,79994.40,724548231
BEIS,The Insolvency Service,09/02/2021,Legal - Costs of Recovering Civil Costs Awarded,Legal Services Division,Burness Paull & Williamsons Solicitors,300026751,168.40,216218532
BEIS,The Insolvency Service,09/02/2021,Legal - Costs of Recovering Civil Costs Awarded,Legal Services Division,Burness Paull & Williamsons Solicitors,300026752,1275.00,216218532
BEIS,The Insolvency Service,09/02/2021,Legal - Costs of Recovering Civil Costs Awarded,Legal Services Division,Burness Paull & Williamsons Solicitors,300026752,196.00,216218532
BEIS,The Insolvency Service,09/02/2021,Legal - Costs of Civil Litigation Disqualifications,Legal Services Division,Burness Paull & Williamsons Solicitors,300026753,12723.99,216218532
BEIS,The Insolvency Service,09/02/2021,Legal - Costs of Civil Litigation Disqualifications,Legal Services Division,Burness Paull & Williamsons Solicitors,300026753,303.00,216218532
BEIS,The Insolvency Service,09/02/2021,Legal - Costs of Civil Litigation Disqualifications,Legal Services Division,Burness Paull & Williamsons Solicitors,300026755,5811.50,216218532
BEIS,The Insolvency Service,09/02/2021,Other Costs,People & Capability,Edenred (UK Group) Ltd,300026810,-4.80,649503520
BEIS,The Insolvency Service,09/02/2021,Other Costs,People & Capability,Edenred (UK Group) Ltd,300026828,995.00,649503520
BEIS,The Insolvency Service,09/02/2021,ICT,Chief Executive Office,Edifit Limited,300026788,8506.80,140698992
BEIS,The Insolvency Service,09/02/2021,ICT,Digital Technology Services,Geoff Smith Associates Ltd,300026823,24844.33,813047166
BEIS,The Insolvency Service,09/02/2021,Other Costs,Official Receiver Services,Insolvency Service,300026739,547.00,
BEIS,The Insolvency Service,09/02/2021,Other Costs,Official Receiver Services,Insolvency Service,300026740,242.00,
BEIS,The Insolvency Service,09/02/2021,Investigation & Enforcement,Investigations & Enforcement Services,Md5 Ltd,300026727,515.00,
BEIS,The Insolvency Service,09/02/2021,Investigation & Enforcement,Investigations & Enforcement Services,Md5 Ltd,300026728,380.00,
BEIS,The Insolvency Service,09/02/2021,Investigation & Enforcement,Investigations & Enforcement Services,Md5 Ltd,300026729,975.86,
BEIS,The Insolvency Service,09/02/2021,Investigation & Enforcement,Investigations & Enforcement Services,Md5 Ltd,300026730,380.00,
BEIS,The Insolvency Service,09/02/2021,ICT,Digital Technology Services,Microsoft Ltd,300026826,61512.00,724594615
BEIS,The Insolvency Service,09/02/2021,Staff Costs - Non-Perms,Business Service Division,Randstad Solutions Ltd,300026779,1283.16,492435726
BEIS,The Insolvency Service,09/02/2021,Staff Costs - Non-Perms,Business Service Division,Randstad Solutions Ltd,300026791,381.48,492435726
BEIS,The Insolvency Service,09/02/2021,Legal - Costs of Recovering Civil Costs Awarded,Legal Services Division,Shepherd & Wedderburn Ws (Scottish Cases),300026764,2945.52,125425142
BEIS,The Insolvency Service,09/02/2021,Legal - Costs of Recovering Civil Costs Awarded,Legal Services Division,Shepherd & Wedderburn Ws (Scottish Cases),300026764,50.00,125425142
BEIS,The Insolvency Service,09/02/2021,Staff Costs - Non-Perms,Digital Technology Services,SmartSourcing,300026202,10224.00,788507869
BEIS,The Insolvency Service,09/02/2021,Travel & Subsistence,Investigations & Enforcement Services,Staff Payment,900016783,5.00,
BEIS,The Insolvency Service,09/02/2021,Travel & Subsistence,Investigations & Enforcement Services,Staff Payment,900016783,66.60,
BEIS,The Insolvency Service,09/02/2021,Travel & Subsistence,Finance & Commercial,Staff Payment,900016777,297.00,
BEIS,The Insolvency Service,09/02/2021,Travel & Subsistence,Official Receiver Services,Staff Payment,900016767,50.00,
BEIS,The Insolvency Service,09/02/2021,Legal - Costs of Criminal Prosecutions and Advice,Legal Services Division,SUNDRY SUPPLIER,300026807,609.40,
BEIS,The Insolvency Service,09/02/2021,ICT,Business Service Division,Syntec Ltd,300026701,154.70,264618586
BEIS,The Insolvency Service,09/02/2021,Other Costs,Official Receiver Services,The Stationery Office Ltd,300026797,87.84,662774703
BEIS,The Insolvency Service,09/02/2021,Other Costs,Official Receiver Services,The Stationery Office Ltd,300026798,87.84,662774703
BEIS,The Insolvency Service,09/02/2021,Investigation & Enforcement,Official Receiver Services,Tlt Llp,300026776,77.00,3574583240
BEIS,The Insolvency Service,09/02/2021,Legal - Costs of Recovering Civil Costs Awarded,Legal Services Division,Tlt Llp,300026777,182.60,3574583240
BEIS,The Insolvency Service,09/02/2021,Legal - Costs of Civil Litigation Winding Up,Investigations & Enforcement Services,Tlt Llp,300026782,66.40,3574583240
BEIS,The Insolvency Service,09/02/2021,Legal - Costs of Civil Litigation Disqualifications,Legal Services Division,Tlt Llp,300026783,19720.50,3574583240
BEIS,The Insolvency Service,09/02/2021,Legal - Costs of Civil Litigation Disqualifications,Legal Services Division,Tlt Llp,300026783,23.97,3574583240
BEIS,The Insolvency Service,09/02/2021,Legal - Costs of Civil Litigation Winding Up,Investigations & Enforcement Services,Tlt Llp,300026784,20518.10,3574583240
BEIS,The Insolvency Service,09/02/2021,Legal - Costs of Criminal Prosecutions and Advice,Legal Services Division,Warwickshire Police & Crime Commissioner,300026801,240.00,
BEIS,The Insolvency Service,09/02/2021,Legal - Costs of Criminal Prosecutions and Advice,Legal Services Division,Warwickshire Police & Crime Commissioner,300026802,240.00,
BEIS,The Insolvency Service,09/02/2021,Investigation & Enforcement,Official Receiver Services,Womble Bond Dickinson,300026817,304.10,123392627
BEIS,The Insolvency Service,09/02/2021,Legal - Costs of Civil Litigation Winding Up,Legal Services Division,Womble Bond Dickinson,300026818,3494.06,123392627
BEIS,The Insolvency Service,09/02/2021,Legal - Costs of Recovering Civil Costs Awarded,Legal Services Division,Womble Bond Dickinson,300026821,4975.71,123392627
BEIS,The Insolvency Service,10/02/2021,Legal - Costs of Criminal Prosecutions and Advice,Legal Services Division,18 Red Lion Court Chambers,300026880,6150.00,766793665
BEIS,The Insolvency Service,10/02/2021,ICT,Digital Technology Services,Bang Communications,300026859,14400.00,569978254
BEIS,The Insolvency Service,10/02/2021,"Printing, Stationary & Postage",Business Service Division,Banner Business Services Ltd,300026780,356.40,731860439
BEIS,The Insolvency Service,10/02/2021,Training,People & Capability,Capita Business Services Ltd,300026827,49785.30,618184140
BEIS,The Insolvency Service,10/02/2021,"Printing, Stationary & Postage",Business Service Division,City Sprint Uk Ltd,300026722,1701.58,997327364
BEIS,The Insolvency Service,10/02/2021,ICT,Digital Technology Services,Daisy Corporate Services Trading Limited,300026822,22282.36,722471355
BEIS,The Insolvency Service,10/02/2021,Training,People & Capability,Dods Parlimentary Communications Ltd,300026825,300.00,792067900
BEIS,The Insolvency Service,10/02/2021,Training,People & Capability,Dods Parlimentary Communications Ltd,300026875,750.00,792067900
BEIS,The Insolvency Service,10/02/2021,Other Costs,Business Service Division,Equifax Ltd,300026743,216.00,565629213
BEIS,The Insolvency Service,10/02/2021,Legal - Outsourced Investigation,Investigations & Enforcement Services,Gowling Wragge Lawrence Graham  & Co,300026857,14225.30,858698838
BEIS,The Insolvency Service,10/02/2021,Investigation & Enforcement,Official Receiver Services,Howes Percival,300026811,213.50,119523573
BEIS,The Insolvency Service,10/02/2021,Legal - Costs of Civil Litigation Winding Up,Investigations & Enforcement Services,Howes Percival,300026812,8506.00,119523573
BEIS,The Insolvency Service,10/02/2021,Legal - Costs of Civil Litigation Winding Up,Investigations & Enforcement Services,Howes Percival,300026812,5305.00,119523573
BEIS,The Insolvency Service,10/02/2021,Legal - Outsourced Investigation,Investigations & Enforcement Services,Howes Percival,300026813,18950.00,119523573
BEIS,The Insolvency Service,10/02/2021,Legal - Costs of Civil Litigation Disqualifications,Legal Services Division,Howes Percival,300026814,37601.66,119523573
BEIS,The Insolvency Service,10/02/2021,Legal - Costs of Civil Litigation Disqualifications,Legal Services Division,Howes Percival,300026814,1197.00,119523573
BEIS,The Insolvency Service,10/02/2021,Legal - Costs of Recovering Civil Costs Awarded,Legal Services Division,Howes Percival,300026815,2927.50,119523573
BEIS,The Insolvency Service,10/02/2021,Legal - Costs of Recovering Civil Costs Awarded,Legal Services Division,Howes Percival,300026815,510.00,119523573
BEIS,The Insolvency Service,10/02/2021,Other Costs,Official Receiver Services,Insolvency Service,300026648,34231.43,
BEIS,The Insolvency Service,10/02/2021,Training,Investigations & Enforcement Services,KPMG LLP,300026861,2500.00,791788859
BEIS,The Insolvency Service,10/02/2021,Investigation & Enforcement,Official Receiver Services,Mills & Reeve LLP,300026760,400.10,104834588
BEIS,The Insolvency Service,10/02/2021,ICT,Projects,Nomensa Limited,300026824,20592.00,771727411
BEIS,The Insolvency Service,10/02/2021,ICT,Digital Technology Services,Nomensa Limited,300026829,2112.00,771727411
BEIS,The Insolvency Service,10/02/2021,Investigation & Enforcement,Official Receiver Services,Shepherd & Wedderburn Ws (English Cases),300026856,567.84,890559386
BEIS,The Insolvency Service,10/02/2021,HR,People & Capability,Smart Employee Eyecare,300026658,190.00,
BEIS,The Insolvency Service,10/02/2021,Staff Costs - Non-Perms,Projects,SmartSourcing,300026851,10584.96,788507869
BEIS,The Insolvency Service,10/02/2021,Staff Costs - Non-Perms,Projects,SmartSourcing,300026870,11400.00,788507869
BEIS,The Insolvency Service,10/02/2021,Staff Costs - Non-Perms,Projects,SmartSourcing,300026872,16200.00,788507869
BEIS,The Insolvency Service,10/02/2021,Travel & Subsistence,Official Receiver Services,Staff Payment,900016789,99.99,
BEIS,The Insolvency Service,10/02/2021,Travel & Subsistence,Official Receiver Services,Staff Payment,900016774,201.60,
BEIS,The Insolvency Service,10/02/2021,Travel & Subsistence,Official Receiver Services,Staff Payment,900016774,3.20,
BEIS,The Insolvency Service,10/02/2021,Travel & Subsistence,Investigations & Enforcement Services,Staff Payment,900016787,17.78,
BEIS,The Insolvency Service,10/02/2021,Travel & Subsistence,Investigations & Enforcement Services,Staff Payment,900016787,17.78,
BEIS,The Insolvency Service,10/02/2021,Travel & Subsistence,Investigations & Enforcement Services,Staff Payment,900016787,17.78,
BEIS,The Insolvency Service,10/02/2021,Travel & Subsistence,Investigations & Enforcement Services,Staff Payment,900016787,17.78,
BEIS,The Insolvency Service,10/02/2021,Travel & Subsistence,Investigations & Enforcement Services,Staff Payment,900016787,14.00,
BEIS,The Insolvency Service,10/02/2021,Travel & Subsistence,Investigations & Enforcement Services,Staff Payment,900016787,14.00,
BEIS,The Insolvency Service,10/02/2021,Travel & Subsistence,Business Service Division,Staff Payment,900016784,89.00,
BEIS,The Insolvency Service,10/02/2021,Legal - Costs of Criminal Prosecutions and Advice,Legal Services Division,SUNDRY SUPPLIER,300026808,1181.30,
BEIS,The Insolvency Service,10/02/2021,Legal - Costs of Criminal Prosecutions and Advice,Legal Services Division,SUNDRY SUPPLIER,300026808,6.30,
BEIS,The Insolvency Service,10/02/2021,Legal - Costs of Criminal Prosecutions and Advice,Legal Services Division,SUNDRY SUPPLIER,300026809,930.53,
BEIS,The Insolvency Service,10/02/2021,Legal - Costs of Criminal Prosecutions and Advice,Legal Services Division,SUNDRY SUPPLIER,300026809,6.40,
BEIS,The Insolvency Service,10/02/2021,Legal - Costs of Civil Litigation Disqualifications,Legal Services Division,SUNDRY SUPPLIER,300026850,528.00,
BEIS,The Insolvency Service,10/02/2021,Estates - Property,Projects,Symity LTD,300026681,657.96,192278875
BEIS,The Insolvency Service,10/02/2021,ICT,Digital Technology Services,Telesis Limited,300025122,240.00,221442453
BEIS,The Insolvency Service,10/02/2021,Legal - Costs of Civil Litigation Winding Up,Investigations & Enforcement Services,Tlt Llp,300026778,1120.00,3574583240
BEIS,The Insolvency Service,10/02/2021,Legal - Costs of Civil Litigation Winding Up,Investigations & Enforcement Services,Tlt Llp,300026778,9885.48,3574583240
BEIS,The Insolvency Service,10/02/2021,Legal - Costs of Civil Litigation Disqualifications,Legal Services Division,Womble Bond Dickinson,300026819,12610.78,123392627
BEIS,The Insolvency Service,10/02/2021,"Legal, Translation & Consultancy",Legal Services Division,Womble Bond Dickinson,300026860,91800.30,123392627
BEIS,The Insolvency Service,11/02/2021,Legal - Costs of Criminal Prosecutions and Advice,Legal Services Division,18 Red Lion Court Chambers,300026876,546.00,766793665
BEIS,The Insolvency Service,11/02/2021,Off-Site Storage,Official Receiver Services,AlixPartners UK LLP,300026879,470.50,100165871)
BEIS,The Insolvency Service,11/02/2021,Legal - Costs of Criminal Prosecutions and Advice,Legal Services Division,Exchange Chambers,300026878,878.75,
BEIS,The Insolvency Service,11/02/2021,Legal - Costs of Civil Litigation Disqualifications,Legal Services Division,Exchange Chambers,300026898,60.00,
BEIS,The Insolvency Service,11/02/2021,Legal - Costs of Civil Litigation Disqualifications,Legal Services Division,Exchange Chambers,300026903,550.00,
BEIS,The Insolvency Service,11/02/2021,Legal - Costs of Civil Litigation Disqualifications,Legal Services Division,9 Stone Buildings,300026899,792.00,168754953
BEIS,The Insolvency Service,11/02/2021,Legal - Costs of Civil Litigation Disqualifications,Legal Services Division,9 Stone Buildings,300026900,834.00,168754953
BEIS,The Insolvency Service,11/02/2021,"Legal, Translation & Consultancy",Projects,Gowling Wragge Lawrence Graham  & Co,300026855,2417.40,858698838
BEIS,The Insolvency Service,11/02/2021,"Legal, Translation & Consultancy",Projects,Gowling Wragge Lawrence Graham  & Co,300026855,80.00,858698838
BEIS,The Insolvency Service,11/02/2021,Legal - Costs of Civil Litigation Disqualifications,Legal Services Division,Gowling Wragge Lawrence Graham  & Co,300026858,13935.45,858698838
BEIS,The Insolvency Service,11/02/2021,Legal - Costs of Civil Litigation Disqualifications,Legal Services Division,Gowling Wragge Lawrence Graham  & Co,300026858,50.00,858698838
BEIS,The Insolvency Service,11/02/2021,Legal - Costs of Recovering Civil Costs Awarded,Legal Services Division,Gowling Wragge Lawrence Graham  & Co,300026866,12197.30,858698838
BEIS,The Insolvency Service,11/02/2021,Legal - Costs of Recovering Civil Costs Awarded,Legal Services Division,Gowling Wragge Lawrence Graham  & Co,300026866,220.00,858698838
BEIS,The Insolvency Service,11/02/2021,Legal - Costs of Civil Litigation Winding Up,Investigations & Enforcement Services,Gowling Wragge Lawrence Graham  & Co,300026867,11037.75,858698838
BEIS,The Insolvency Service,11/02/2021,Legal - Costs of Civil Litigation Winding Up,Investigations & Enforcement Services,Gowling Wragge Lawrence Graham  & Co,300026867,935.00,858698838
BEIS,The Insolvency Service,11/02/2021,Training,People & Capability,KPMG LLP,300026862,10129.00,791788859
BEIS,The Insolvency Service,11/02/2021,Training,People & Capability,KPMG LLP,300026863,2900.00,791788859
BEIS,The Insolvency Service,11/02/2021,Legal - Costs of Civil Litigation Disqualifications,Legal Services Division,Enterprise Chambers,300026901,462.00,900864046
BEIS,The Insolvency Service,11/02/2021,Staff Costs - Non-Perms,Digital Technology Services,Netcompany UK Ltd,300026726,21600.00,171809009
BEIS,The Insolvency Service,11/02/2021,ICT,Business Service Division,Nomensa Limited,300026882,52410.00,771727411
BEIS,The Insolvency Service,11/02/2021,ICT,Projects,Nomensa Limited,300026883,3060.00,771727411
BEIS,The Insolvency Service,11/02/2021,Legal - Costs of Civil Litigation Disqualifications,Legal Services Division,Selbourne Chambers,300026902,1008.00,1036299146
BEIS,The Insolvency Service,11/02/2021,Legal - Costs of Civil Litigation Disqualifications,Legal Services Division,SUNDRY SUPPLIER,300026891,576.00,
BEIS,The Insolvency Service,11/02/2021,Legal - Costs of Civil Litigation Disqualifications,Legal Services Division,SUNDRY SUPPLIER,300026893,816.00,
BEIS,The Insolvency Service,11/02/2021,Legal - Costs of Civil Litigation Disqualifications,Legal Services Division,SUNDRY SUPPLIER,300026894,1248.00,
BEIS,The Insolvency Service,11/02/2021,Estates - Property,Projects,Symity LTD,300026713,3162.06,192278875
BEIS,The Insolvency Service,11/02/2021,Staff Costs - Non-Perms,Projects,Thales Uk Ltd. (L&J),300026884,2179.20,198955680
BEIS,The Insolvency Service,11/02/2021,Other Costs,Official Receiver Services,The Stationery Office Ltd,300026836,87.84,662774703
BEIS,The Insolvency Service,11/02/2021,Legal - Costs of Civil Litigation Disqualifications,Legal Services Division,Womble Bond Dickinson,300026820,180282.70,123392627
BEIS,The Insolvency Service,11/02/2021,Legal - Costs of Civil Litigation Disqualifications,Legal Services Division,Womble Bond Dickinson,300026820,91.32,123392627
BEIS,The Insolvency Service,12/02/2021,Staff Costs - Non-Perms,Finance & Commercial,ALEXANDER MANN SOLUTIONS,300026664,-555.00,7444926120
BEIS,The Insolvency Service,12/02/2021,Staff Costs - Non-Perms,Finance & Commercial,ALEXANDER MANN SOLUTIONS,300026917,37988.22,7444926120
BEIS,The Insolvency Service,12/02/2021,"Legal, Translation & Consultancy",Investigations & Enforcement Services,Mendip Media Group Ltd (Now Trading As Appen) - (Transcri),300026923,213.06,609546425
BEIS,The Insolvency Service,12/02/2021,ICT,Digital Technology Services,Nomensa Limited,300026924,285000.00,771727411
BEIS,The Insolvency Service,12/02/2021,Other Costs,Official Receiver Services,Royal Mail,300026913,2376.00,
BEIS,The Insolvency Service,12/02/2021,Other Costs,Official Receiver Services,Sirs (Europe) Ltd,300026877,15753.13,990834974
BEIS,The Insolvency Service,12/02/2021,Staff Costs - Non-Perms,Digital Technology Services,SmartSourcing,300026849,14400.00,788507869
BEIS,The Insolvency Service,12/02/2021,Staff Costs - Non-Perms,Digital Technology Services,SmartSourcing,300026853,13800.00,788507869
BEIS,The Insolvency Service,12/02/2021,Staff Costs - Non-Perms,Projects,SmartSourcing,300026868,11040.00,788507869
BEIS,The Insolvency Service,12/02/2021,Staff Costs - Non-Perms,Digital Technology Services,SmartSourcing,300026869,17040.00,788507869
BEIS,The Insolvency Service,12/02/2021,Staff Costs - Non-Perms,Projects,SmartSourcing,300026873,16200.00,788507869
BEIS,The Insolvency Service,12/02/2021,Staff Costs - Non-Perms,Projects,SmartSourcing,300026919,14916.00,788507869
BEIS,The Insolvency Service,12/02/2021,Staff Costs - Non-Perms,Projects,SmartSourcing,300026920,11827.20,788507869
BEIS,The Insolvency Service,12/02/2021,Staff Costs - Non-Perms,Projects,SmartSourcing,300026926,16500.00,788507869
BEIS,The Insolvency Service,12/02/2021,Staff Costs - Non-Perms,Projects,SmartSourcing,300026927,14040.00,788507869
BEIS,The Insolvency Service,12/02/2021,Staff Costs - Non-Perms,Projects,SmartSourcing,300026928,14280.00,788507869
BEIS,The Insolvency Service,12/02/2021,Staff Costs - Non-Perms,Projects,SmartSourcing,300026929,16080.00,788507869
BEIS,The Insolvency Service,12/02/2021,Travel & Subsistence,Investigations & Enforcement Services,Staff Payment,900016795,10.00,
BEIS,The Insolvency Service,12/02/2021,Travel & Subsistence,Investigations & Enforcement Services,Staff Payment,900016806,7.00,
BEIS,The Insolvency Service,12/02/2021,Travel & Subsistence,Investigations & Enforcement Services,Staff Payment,900016806,26.75,
BEIS,The Insolvency Service,12/02/2021,Travel & Subsistence,Official Receiver Services,Staff Payment,900016793,1.51,
BEIS,The Insolvency Service,12/02/2021,Travel & Subsistence,Official Receiver Services,Staff Payment,900016793,1.29,
BEIS,The Insolvency Service,12/02/2021,Travel & Subsistence,Official Receiver Services,Staff Payment,900016793,7.14,
BEIS,The Insolvency Service,12/02/2021,Travel & Subsistence,Official Receiver Services,Staff Payment,900016793,2.58,
BEIS,The Insolvency Service,12/02/2021,Travel & Subsistence,Official Receiver Services,Staff Payment,900016793,3.75,
BEIS,The Insolvency Service,12/02/2021,Travel & Subsistence,Official Receiver Services,Staff Payment,900016793,4.11,
BEIS,The Insolvency Service,12/02/2021,Travel & Subsistence,Official Receiver Services,Staff Payment,900016793,7.79,
BEIS,The Insolvency Service,12/02/2021,Travel & Subsistence,Business Service Division,Staff Payment,900016803,4.85,
BEIS,The Insolvency Service,12/02/2021,Travel & Subsistence,Finance & Commercial,Staff Payment,900016800,205.00,
BEIS,The Insolvency Service,12/02/2021,Travel & Subsistence,Finance & Commercial,Staff Payment,900016799,100.00,
BEIS,The Insolvency Service,12/02/2021,Travel & Subsistence,Investigations & Enforcement Services,Staff Payment,900016804,14.00,
BEIS,The Insolvency Service,12/02/2021,Travel & Subsistence,Investigations & Enforcement Services,Staff Payment,900016804,8.55,
BEIS,The Insolvency Service,12/02/2021,Travel & Subsistence,Digital Technology Services,Staff Payment,900016798,21.65,
BEIS,The Insolvency Service,12/02/2021,Travel & Subsistence,Digital Technology Services,Staff Payment,900016798,21.65,
BEIS,The Insolvency Service,12/02/2021,Travel & Subsistence,Digital Technology Services,Staff Payment,900016798,21.56,
BEIS,The Insolvency Service,12/02/2021,Travel & Subsistence,Digital Technology Services,Staff Payment,900016798,21.56,
BEIS,The Insolvency Service,12/02/2021,Travel & Subsistence,Investigations & Enforcement Services,Staff Payment,900016796,4.80,
BEIS,The Insolvency Service,12/02/2021,Travel & Subsistence,Investigations & Enforcement Services,Staff Payment,900016796,4.90,
BEIS,The Insolvency Service,12/02/2021,Travel & Subsistence,Investigations & Enforcement Services,Staff Payment,900016796,29.25,
BEIS,The Insolvency Service,12/02/2021,Travel & Subsistence,Investigations & Enforcement Services,Staff Payment,900016796,36.00,
BEIS,The Insolvency Service,12/02/2021,Travel & Subsistence,Investigations & Enforcement Services,Staff Payment,900016796,20.00,
BEIS,The Insolvency Service,12/02/2021,Travel & Subsistence,Investigations & Enforcement Services,Staff Payment,900016797,13.50,
BEIS,The Insolvency Service,12/02/2021,Travel & Subsistence,Investigations & Enforcement Services,Staff Payment,900016797,13.50,
BEIS,The Insolvency Service,12/02/2021,Travel & Subsistence,Official Receiver Services,Staff Payment,900016802,16.09,
BEIS,The Insolvency Service,12/02/2021,Travel & Subsistence,Investigations & Enforcement Services,Staff Payment,900016771,10.67,
BEIS,The Insolvency Service,15/02/2021,Estates - Property,Finance & Commercial,Cross Stone Estates Limited,300026950,6129.00,783680883
BEIS,The Insolvency Service,15/02/2021,Estates - Property,Projects,GPA (C/O Montagu Evans LLP),300026905,23849.88,
BEIS,The Insolvency Service,15/02/2021,"Legal, Translation & Consultancy",Investigations & Enforcement Services,Mendip Media Group Ltd (Now Trading As Appen) - (Transcri),300026936,27.72,609546425
BEIS,The Insolvency Service,15/02/2021,Estates - Property,Finance & Commercial,Prydis Support Ltd,300026925,424.73,974841283
BEIS,The Insolvency Service,15/02/2021,Staff Costs - Non-Perms,Business Service Division,Randstad Solutions Ltd,300026921,1283.16,492435726
BEIS,The Insolvency Service,15/02/2021,ICT,Digital Technology Services,Ricoh Uk Limited,300026918,21579.82,
BEIS,The Insolvency Service,15/02/2021,Staff Costs - Non-Perms,Digital Technology Services,SmartSourcing,300026852,14040.00,788507869
BEIS,The Insolvency Service,15/02/2021,Staff Costs - Non-Perms,Digital Technology Services,SmartSourcing,300026871,12360.00,788507869
BEIS,The Insolvency Service,15/02/2021,Travel & Subsistence,Official Receiver Services,Staff Payment,900016807,79.99,
BEIS,The Insolvency Service,15/02/2021,Travel & Subsistence,Official Receiver Services,Staff Payment,900016813,0.66,
BEIS,The Insolvency Service,15/02/2021,Travel & Subsistence,Official Receiver Services,Staff Payment,900016813,0.85,
BEIS,The Insolvency Service,15/02/2021,Travel & Subsistence,Official Receiver Services,Staff Payment,900016813,5.95,
BEIS,The Insolvency Service,15/02/2021,Travel & Subsistence,Investigations & Enforcement Services,Staff Payment,900016775,65.25,
BEIS,The Insolvency Service,15/02/2021,Travel & Subsistence,Investigations & Enforcement Services,Staff Payment,900016775,34.20,
BEIS,The Insolvency Service,15/02/2021,Travel & Subsistence,Investigations & Enforcement Services,Staff Payment,900016775,56.25,
BEIS,The Insolvency Service,15/02/2021,Travel & Subsistence,Investigations & Enforcement Services,Staff Payment,900016775,46.35,
BEIS,The Insolvency Service,15/02/2021,Travel & Subsistence,Investigations & Enforcement Services,Staff Payment,900016775,13.50,
BEIS,The Insolvency Service,15/02/2021,Travel & Subsistence,Investigations & Enforcement Services,Staff Payment,900016775,35.55,
BEIS,The Insolvency Service,15/02/2021,Travel & Subsistence,Investigations & Enforcement Services,Staff Payment,900016775,26.10,
BEIS,The Insolvency Service,15/02/2021,Travel & Subsistence,Investigations & Enforcement Services,Staff Payment,900016775,26.10,
BEIS,The Insolvency Service,15/02/2021,Travel & Subsistence,Investigations & Enforcement Services,Staff Payment,900016775,3.75,
BEIS,The Insolvency Service,15/02/2021,Travel & Subsistence,Investigations & Enforcement Services,Staff Payment,900016775,5.00,
BEIS,The Insolvency Service,15/02/2021,Travel & Subsistence,Investigations & Enforcement Services,Staff Payment,900016775,5.00,
BEIS,The Insolvency Service,15/02/2021,Travel & Subsistence,Investigations & Enforcement Services,Staff Payment,900016810,14.00,
BEIS,The Insolvency Service,15/02/2021,Travel & Subsistence,Finance & Commercial,Staff Payment,900016805,137.00,
BEIS,The Insolvency Service,15/02/2021,Travel & Subsistence,Finance & Commercial,Staff Payment,900016794,294.00,
BEIS,The Insolvency Service,16/02/2021,Estates - Property,Finance & Commercial,British Gas Business,300026716,88.45,684966762
BEIS,The Insolvency Service,16/02/2021,Estates - Property,Finance & Commercial,British Gas Business,300026957,281.11,684966762
BEIS,The Insolvency Service,16/02/2021,Estates - Property,Finance & Commercial,British Gas Business,300026959,273.67,684966762
BEIS,The Insolvency Service,16/02/2021,Estates - Property,Finance & Commercial,British Gas Business,300026960,224.39,684966762
BEIS,The Insolvency Service,16/02/2021,Estates - Property,Finance & Commercial,British Gas Business,300026961,183.60,684966762
BEIS,The Insolvency Service,16/02/2021,Estates - Property,Finance & Commercial,British Gas Business,300026962,217.40,684966762
BEIS,The Insolvency Service,16/02/2021,Training,People & Capability,Capita Business Services Ltd,300026980,10481.10,618184140
BEIS,The Insolvency Service,16/02/2021,Staff Costs - Non-Perms,Business Service Division,Insight Direct (UK) Ltd,300026951,6566.89,746075129
BEIS,The Insolvency Service,16/02/2021,Training,Finance & Commercial,KPMG LLP,300026978,611.00,791788859
BEIS,The Insolvency Service,16/02/2021,Training,Business Service Division,Rethink Mental Illness,300026981,2600.00,269460276
BEIS,The Insolvency Service,16/02/2021,Legal - Costs of Recovering Civil Costs Awarded,Legal Services Division,Shepherd & Wedderburn Ws (English Cases),300026982,893.68,890559386
BEIS,The Insolvency Service,16/02/2021,Legal - Costs of Recovering Civil Costs Awarded,Legal Services Division,Shepherd & Wedderburn Ws (English Cases),300026982,156.00,890559386
BEIS,The Insolvency Service,16/02/2021,ICT,Digital Technology Services,Smartcomms Sc Ltd,300026979,108393.31,
BEIS,The Insolvency Service,16/02/2021,Travel & Subsistence,Investigations & Enforcement Services,Staff Payment,900016814,115.00,
BEIS,The Insolvency Service,16/02/2021,Training,Business Service Division,SUNDRY SUPPLIER,300026885,1100.00,
BEIS,The Insolvency Service,16/02/2021,ICT,Digital Technology Services,Symity LTD,300026881,18902.92,192278875
BEIS,The Insolvency Service,16/02/2021,ICT,Digital Technology Services,Ukcloud Ltd,300026654,10863.43,172647982
BEIS,The Insolvency Service,16/02/2021,Legal - Costs of Civil Litigation Disqualifications,Legal Services Division,Womble Bond Dickinson,300026816,389364.36,123392627
BEIS,The Insolvency Service,16/02/2021,Legal - Costs of Civil Litigation Disqualifications,Legal Services Division,Womble Bond Dickinson,300026816,2228.07,123392627
BEIS,The Insolvency Service,17/02/2021,Staff Costs - Non-Perms,Finance & Commercial,ALEXANDER MANN SOLUTIONS,300026991,43423.00,7444926120
BEIS,The Insolvency Service,17/02/2021,Legal - Costs of Criminal Prosecutions and Advice,Legal Services Division,Ringrose Law Solicitors,300026987,775.85,
BEIS,The Insolvency Service,17/02/2021,Staff Costs - Non-Perms,Investigations & Enforcement Services,SmartSourcing,300026865,22080.00,788507869
BEIS,The Insolvency Service,17/02/2021,Travel & Subsistence,Investigations & Enforcement Services,Staff Payment,900016817,5.60,
BEIS,The Insolvency Service,17/02/2021,Travel & Subsistence,Investigations & Enforcement Services,Staff Payment,900016817,5.10,
BEIS,The Insolvency Service,17/02/2021,Travel & Subsistence,Official Receiver Services,Staff Payment,900016812,7.77,
BEIS,The Insolvency Service,17/02/2021,Travel & Subsistence,Investigations & Enforcement Services,Staff Payment,900016735,95.98,
BEIS,The Insolvency Service,17/02/2021,Legal - Costs of Criminal Prosecutions and Advice,Legal Services Division,SUNDRY SUPPLIER,300026993,3327.66,
BEIS,The Insolvency Service,17/02/2021,Other Costs,Official Receiver Services,The Stationery Office Ltd,300026956,87.84,662774703
BEIS,The Insolvency Service,18/02/2021,Legal - Costs of Criminal Prosecutions and Advice,Legal Services Division,18 Red Lion Court Chambers,300027017,180.00,766793665
BEIS,The Insolvency Service,18/02/2021,Legal - Costs of Civil Litigation Disqualifications,Legal Services Division,2 Harcourt Buildings,300027013,288.00,946426795
BEIS,The Insolvency Service,18/02/2021,Legal - Costs of Civil Litigation Disqualifications,Legal Services Division,2 Harcourt Buildings,300027014,282.00,946426795
BEIS,The Insolvency Service,18/02/2021,Legal - Costs of Civil Litigation Disqualifications,Legal Services Division,2 Harcourt Buildings,300027015,774.00,946426795
BEIS,The Insolvency Service,18/02/2021,Training,People & Capability,Capita Business Services Ltd,300026934,5219.17,618184140
BEIS,The Insolvency Service,18/02/2021,Training,People & Capability,Capita Business Services Ltd,300026935,417.11,618184140
BEIS,The Insolvency Service,18/02/2021,Legal - Costs of Recovering Civil Costs Awarded,Legal Services Division,Clarke Willmott Solicitors,300027010,129.99,129913060
BEIS,The Insolvency Service,18/02/2021,Estates - Property,Finance & Commercial,GPA (C/O Montagu Evans LLP),300026966,10048.97,
BEIS,The Insolvency Service,18/02/2021,Estates - Property,Finance & Commercial,GPA (C/O Montagu Evans LLP),300026967,10475.89,
BEIS,The Insolvency Service,18/02/2021,Estates - Property,Finance & Commercial,GPA (C/O Montagu Evans LLP),300026968,3377.35,
BEIS,The Insolvency Service,18/02/2021,Estates - Property,Finance & Commercial,GPA (C/O Montagu Evans LLP),300026969,4894.39,
BEIS,The Insolvency Service,18/02/2021,Estates - Property,Finance & Commercial,GPA (C/O Montagu Evans LLP),300026970,2668.38,
BEIS,The Insolvency Service,18/02/2021,Estates - Property,Finance & Commercial,GPA (C/O Montagu Evans LLP),300026971,3533.35,
BEIS,The Insolvency Service,18/02/2021,Estates - Property,Finance & Commercial,GPA (C/O Montagu Evans LLP),300026972,3792.04,
BEIS,The Insolvency Service,18/02/2021,Estates - Property,Finance & Commercial,GPA (C/O Montagu Evans LLP),300026973,9508.30,
BEIS,The Insolvency Service,18/02/2021,Estates - Property,Finance & Commercial,GPA (C/O Montagu Evans LLP),300026974,3297.49,
BEIS,The Insolvency Service,18/02/2021,Estates - Property,Finance & Commercial,GPA (C/O Montagu Evans LLP),300026975,3458.80,
BEIS,The Insolvency Service,18/02/2021,Legal - Costs of Civil Litigation Disqualifications,Legal Services Division,South Square,300027023,84.00,843274916
BEIS,The Insolvency Service,18/02/2021,Legal - Costs of Civil Litigation Disqualifications,Legal Services Division,South Square,300027024,96.00,843274916
BEIS,The Insolvency Service,18/02/2021,Training,People & Capability,KPMG LLP,300026977,2500.00,791788859
BEIS,The Insolvency Service,18/02/2021,"Printing, Stationary & Postage",Business Service Division,Quadient UK Limited,300027008,78040.21,
BEIS,The Insolvency Service,18/02/2021,Staff Costs - Non-Perms,Digital Technology Services,SmartSourcing,300026874,19584.00,788507869
BEIS,The Insolvency Service,18/02/2021,Travel & Subsistence,Investigations & Enforcement Services,Staff Payment,900016824,3.10,
BEIS,The Insolvency Service,18/02/2021,Travel & Subsistence,Investigations & Enforcement Services,Staff Payment,900016824,31.53,
BEIS,The Insolvency Service,18/02/2021,Travel & Subsistence,Investigations & Enforcement Services,Staff Payment,900016816,24.50,
BEIS,The Insolvency Service,18/02/2021,Travel & Subsistence,Investigations & Enforcement Services,Staff Payment,900016816,144.00,
BEIS,The Insolvency Service,18/02/2021,Travel & Subsistence,Finance & Commercial,Staff Payment,900016815,138.44,
BEIS,The Insolvency Service,18/02/2021,Travel & Subsistence,Finance & Commercial,Staff Payment,900016815,161.10,
BEIS,The Insolvency Service,18/02/2021,Travel & Subsistence,Finance & Commercial,Staff Payment,900016815,17.50,
BEIS,The Insolvency Service,18/02/2021,Travel & Subsistence,Finance & Commercial,Staff Payment,900016815,2.00,
BEIS,The Insolvency Service,18/02/2021,Travel & Subsistence,Finance & Commercial,Staff Payment,900016815,11.00,
BEIS,The Insolvency Service,18/02/2021,Travel & Subsistence,Finance & Commercial,Staff Payment,900016815,119.70,
BEIS,The Insolvency Service,18/02/2021,Travel & Subsistence,Finance & Commercial,Staff Payment,900016815,126.00,
BEIS,The Insolvency Service,18/02/2021,Travel & Subsistence,Finance & Commercial,Staff Payment,900016815,3.80,
BEIS,The Insolvency Service,18/02/2021,Travel & Subsistence,Finance & Commercial,Staff Payment,900016815,3.00,
BEIS,The Insolvency Service,18/02/2021,Travel & Subsistence,Finance & Commercial,Staff Payment,900016815,5.00,
BEIS,The Insolvency Service,18/02/2021,Travel & Subsistence,Finance & Commercial,Staff Payment,900016815,10.00,
BEIS,The Insolvency Service,18/02/2021,Travel & Subsistence,Finance & Commercial,Staff Payment,900016815,5.00,
BEIS,The Insolvency Service,18/02/2021,Travel & Subsistence,Finance & Commercial,Staff Payment,900016815,8.80,
BEIS,The Insolvency Service,18/02/2021,Travel & Subsistence,Finance & Commercial,Staff Payment,900016815,4.85,
BEIS,The Insolvency Service,18/02/2021,Travel & Subsistence,Finance & Commercial,Staff Payment,900016815,5.00,
BEIS,The Insolvency Service,18/02/2021,Travel & Subsistence,Finance & Commercial,Staff Payment,900016815,4.90,
BEIS,The Insolvency Service,19/02/2021,Legal - Costs of Criminal Prosecutions and Advice,Legal Services Division,18 Red Lion Court Chambers,300027018,639.60,766793665
BEIS,The Insolvency Service,19/02/2021,Legal - Costs of Civil Litigation Disqualifications,Legal Services Division,18 St John Street Chambers,300027007,4147.79,826858289
BEIS,The Insolvency Service,19/02/2021,Legal - Costs of Civil Litigation Disqualifications,Legal Services Division,4 NEW SQUARE LIMITED,300027045,2100.00,985159179
BEIS,The Insolvency Service,19/02/2021,Legal - Costs of Criminal Prosecutions and Advice,Legal Services Division,5 St Andrews Hill,300027016,681.00,703074472
BEIS,The Insolvency Service,19/02/2021,Legal - Costs of Criminal Prosecutions and Advice,Legal Services Division,Citadel Chambers,300027026,1184.00,241217250
BEIS,The Insolvency Service,19/02/2021,Legal - Costs of Criminal Prosecutions and Advice,Legal Services Division,Citadel Chambers,300027044,144.00,241217250
BEIS,The Insolvency Service,19/02/2021,Estates - Property,Finance & Commercial,GPA (C/O Montagu Evans LLP),300027057,510.10,
BEIS,The Insolvency Service,19/02/2021,Estates - Property,Finance & Commercial,GPA (C/O Montagu Evans LLP),300027059,809.01,
BEIS,The Insolvency Service,19/02/2021,Estates - Property,Finance & Commercial,GPA (C/O Montagu Evans LLP),300027060,16070.63,
BEIS,The Insolvency Service,19/02/2021,ICT,Chief Executive Office,Granicus,300027061,1170.96,943669974
BEIS,The Insolvency Service,19/02/2021,HR,Investigations & Enforcement Services,NAFN Data and Intelligence Services,300027055,318.00,149193544
BEIS,The Insolvency Service,19/02/2021,Off-Site Storage,Official Receiver Services,Restore Plc (Records Management),300027052,7166.39,843863011
BEIS,The Insolvency Service,19/02/2021,Staff Costs - Non-Perms,Projects,SmartSourcing,300027051,18900.00,788507869
BEIS,The Insolvency Service,19/02/2021,Travel & Subsistence,Official Receiver Services,Staff Payment,900016809,37.50,
BEIS,The Insolvency Service,19/02/2021,Travel & Subsistence,Official Receiver Services,Staff Payment,900016809,14.52,
BEIS,The Insolvency Service,19/02/2021,Travel & Subsistence,Official Receiver Services,Staff Payment,900016823,1.83,
BEIS,The Insolvency Service,19/02/2021,HR,People & Capability,SUNDRY SUPPLIER,300026994,25.00,
BEIS,The Insolvency Service,22/02/2021,Estates - Property,Projects,Advanced 365 Limited,300025187,3262.56,927547983
BEIS,The Insolvency Service,22/02/2021,Estates - Property,Projects,Advanced 365 Limited,300025290,1324.54,927547983
BEIS,The Insolvency Service,22/02/2021,Staff Costs - Non-Perms,Finance & Commercial,ALEXANDER MANN SOLUTIONS,300027068,40917.65,7444926120
BEIS,The Insolvency Service,22/02/2021,Estates - Property,Finance & Commercial,Arc Business Interiors,300027047,53784.00,857128506
BEIS,The Insolvency Service,22/02/2021,Estates - Property,Finance & Commercial,Arc Business Interiors,300027049,2040.00,857128506
BEIS,The Insolvency Service,22/02/2021,Estates - Property,Projects,Arc Business Interiors,300027050,1464.00,857128506
BEIS,The Insolvency Service,22/02/2021,Estates - Property,Finance & Commercial,E.On,300027053,479.54,559097889
BEIS,The Insolvency Service,22/02/2021,Estates - Property,Finance & Commercial,Edf Energy,300027069,1421.11,523041202
BEIS,The Insolvency Service,22/02/2021,Estates - Property,Finance & Commercial,Edf Energy,300027070,1438.55,523041202
BEIS,The Insolvency Service,22/02/2021,Other Costs,Investigations & Enforcement Services,Govnet Communications,300027073,2138.40,686277974
BEIS,The Insolvency Service,22/02/2021,Estates - Property,Finance & Commercial,GPA (C/O Montagu Evans LLP),300027058,25063.37,
BEIS,The Insolvency Service,22/02/2021,Estates - Property,Finance & Commercial,GPA (C/O Montagu Evans LLP),300027071,240.00,
BEIS,The Insolvency Service,22/02/2021,Staff Costs - Non-Perms,Business Service Division,Randstad Solutions Ltd,300027074,1283.16,492435726
BEIS,The Insolvency Service,22/02/2021,Legal - Costs of Civil Litigation Disqualifications,Legal Services Division,Selbourne Chambers,300027075,1393.30,1036299146
BEIS,The Insolvency Service,22/02/2021,Legal - Costs of Civil Litigation Disqualifications,Legal Services Division,Selbourne Chambers,300027076,1160.00,1036299146
BEIS,The Insolvency Service,23/02/2021,ICT,Digital Technology Services,Advanced 365 Limited,300027025,9048.59,927547983
BEIS,The Insolvency Service,23/02/2021,Other Costs,People & Capability,Beis - Dept. For Business Innovation & Skills,300027093,8200.99,888825550
BEIS,The Insolvency Service,23/02/2021,Estates - Property,Finance & Commercial,British Gas Business,300027096,81.32,684966762
BEIS,The Insolvency Service,23/02/2021,Training,People & Capability,Capita Business Services Ltd,300027090,2620.28,618184140
BEIS,The Insolvency Service,23/02/2021,ICT,Projects,Edifit Limited,300026789,8506.80,140698992
BEIS,The Insolvency Service,23/02/2021,ICT,Official Receiver Services,Indesser,300026983,6912.00,213842134
BEIS,The Insolvency Service,23/02/2021,ICT,Official Receiver Services,Indesser,300026984,6912.00,213842134
BEIS,The Insolvency Service,23/02/2021,ICT,Official Receiver Services,Indesser,300026985,7968.00,213842134
BEIS,The Insolvency Service,23/02/2021,Estates - Property,Official Receiver Services,Iron Mountain (Uk) Ltd,300027078,6159.08,607937516
BEIS,The Insolvency Service,23/02/2021,ICT,Projects,NTT DATA UK LIMITED,300027034,21180.00,159334590
BEIS,The Insolvency Service,23/02/2021,"Printing, Stationary & Postage",Business Service Division,Royal Mail,300027094,285.00,243170002
BEIS,The Insolvency Service,24/02/2021,ICT,Projects,Advanced 365 Limited,300026723,1019.99,927547983
BEIS,The Insolvency Service,24/02/2021,HR,People & Capability,Cabinet Office,300027092,19342.80,888801080
BEIS,The Insolvency Service,24/02/2021,HR,People & Capability,Duradiamond Healthcare Limited,300026992,4575.24,806426440
BEIS,The Insolvency Service,24/02/2021,ICT,Digital Technology Services,Experian Qas Ltd,300027114,1324.76,887133593
BEIS,The Insolvency Service,24/02/2021,ICT,Digital Technology Services,Experian Qas Ltd,300027115,9783.60,887133593
BEIS,The Insolvency Service,24/02/2021,Training,People & Capability,KPMG LLP,300027046,2500.00,791788859
BEIS,The Insolvency Service,24/02/2021,Training,People & Capability,KPMG LLP,300027097,10129.00,791788859
BEIS,The Insolvency Service,24/02/2021,Training,People & Capability,Skills For Justice (Enterprises) Ltd,300027072,36.00,167140810
BEIS,The Insolvency Service,24/02/2021,Staff Costs - Non-Perms,Digital Technology Services,SmartSourcing,300026953,12000.00,788507869
BEIS,The Insolvency Service,24/02/2021,Travel & Subsistence,Chief Executive Office,Staff Payment,900016772,8.75,
BEIS,The Insolvency Service,24/02/2021,Travel & Subsistence,Chief Executive Office,Staff Payment,900016772,204.75,
BEIS,The Insolvency Service,24/02/2021,Travel & Subsistence,Chief Executive Office,Staff Payment,900016772,13.00,
BEIS,The Insolvency Service,24/02/2021,Travel & Subsistence,Official Receiver Services,Staff Payment,900016829,36.00,
BEIS,The Insolvency Service,24/02/2021,Travel & Subsistence,People & Capability,Staff Payment,900011534,15.00,
BEIS,The Insolvency Service,24/02/2021,Travel & Subsistence,People & Capability,Staff Payment,900011534,3.39,
BEIS,The Insolvency Service,24/02/2021,Travel & Subsistence,People & Capability,Staff Payment,900011534,5.00,
BEIS,The Insolvency Service,24/02/2021,Travel & Subsistence,People & Capability,Staff Payment,900011534,5.00,
BEIS,The Insolvency Service,24/02/2021,Travel & Subsistence,Official Receiver Services,Staff Payment,900016694,0.68,
BEIS,The Insolvency Service,24/02/2021,Travel & Subsistence,Official Receiver Services,Staff Payment,900016694,3.40,
BEIS,The Insolvency Service,24/02/2021,Travel & Subsistence,Official Receiver Services,Staff Payment,900016747,5.00,
BEIS,The Insolvency Service,24/02/2021,Travel & Subsistence,Official Receiver Services,Staff Payment,900016747,15.30,
BEIS,The Insolvency Service,24/02/2021,Travel & Subsistence,Official Receiver Services,Staff Payment,900016831,3.00,
BEIS,The Insolvency Service,24/02/2021,Travel & Subsistence,Official Receiver Services,Staff Payment,900016831,1.50,
BEIS,The Insolvency Service,24/02/2021,Travel & Subsistence,Official Receiver Services,Staff Payment,900016831,1.50,
BEIS,The Insolvency Service,24/02/2021,Travel & Subsistence,Official Receiver Services,Staff Payment,900016831,1.50,
BEIS,The Insolvency Service,24/02/2021,Travel & Subsistence,Official Receiver Services,Staff Payment,900016831,1.50,
BEIS,The Insolvency Service,24/02/2021,Travel & Subsistence,Official Receiver Services,Staff Payment,900016831,1.50,
BEIS,The Insolvency Service,24/02/2021,Travel & Subsistence,Official Receiver Services,Staff Payment,900016768,41.40,
BEIS,The Insolvency Service,24/02/2021,Travel & Subsistence,Official Receiver Services,Staff Payment,900016827,32.40,
BEIS,The Insolvency Service,24/02/2021,Travel & Subsistence,Official Receiver Services,Staff Payment,900016827,1.00,
BEIS,The Insolvency Service,24/02/2021,Travel & Subsistence,Official Receiver Services,Staff Payment,900016832,17.10,
BEIS,The Insolvency Service,24/02/2021,Travel & Subsistence,Official Receiver Services,Staff Payment,900016832,17.10,
BEIS,The Insolvency Service,24/02/2021,Travel & Subsistence,Official Receiver Services,Staff Payment,900016832,17.10,
BEIS,The Insolvency Service,24/02/2021,Travel & Subsistence,Investigations & Enforcement Services,Staff Payment,900016835,8.99,
BEIS,The Insolvency Service,24/02/2021,Travel & Subsistence,Investigations & Enforcement Services,Staff Payment,900016835,177.58,
BEIS,The Insolvency Service,24/02/2021,Travel & Subsistence,Official Receiver Services,Staff Payment,900016830,6.00,
BEIS,The Insolvency Service,24/02/2021,Travel & Subsistence,Official Receiver Services,Staff Payment,900016833,3.79,
BEIS,The Insolvency Service,24/02/2021,Other Costs,Official Receiver Services,SUNDRY SUPPLIER,300027106,180.00,
BEIS,The Insolvency Service,24/02/2021,Training,Finance & Commercial,The Chartered Institute of Public Finance & Accounting (CIPFA),300027091,2000.00,627390725
BEIS,The Insolvency Service,25/02/2021,Estates - Property,Projects,Advanced 365 Limited,300027110,11930.66,927547983
BEIS,The Insolvency Service,25/02/2021,ICT,Digital Technology Services,Advanced 365 Limited,300027113,6570.00,927547983
BEIS,The Insolvency Service,25/02/2021,Training,"Strategy, Policy & Analysis",BPP Professional Education,300027135,5728.00,466451629
BEIS,The Insolvency Service,25/02/2021,Training,"Strategy, Policy & Analysis",BPP Professional Education,300027138,5728.00,466451629
BEIS,The Insolvency Service,25/02/2021,Estates - Property,Finance & Commercial,Castle Water Limited,300027108,1422.80,319427788
BEIS,The Insolvency Service,25/02/2021,Estates - Property,Finance & Commercial,Castle Water Limited,300027109,1422.76,319427788
BEIS,The Insolvency Service,25/02/2021,"Printing, Stationary & Postage",Official Receiver Services,Quadient UK,300027141,48.00,
BEIS,The Insolvency Service,25/02/2021,ICT,Digital Technology Services,Ricoh Uk Limited,300026976,2030.83,
BEIS,The Insolvency Service,25/02/2021,ICT,Digital Technology Services,Ricoh Uk Limited,300027107,1174.64,
BEIS,The Insolvency Service,25/02/2021,Travel & Subsistence,Official Receiver Services,Staff Payment,900016837,159.30,
BEIS,The Insolvency Service,25/02/2021,Travel & Subsistence,Official Receiver Services,Staff Payment,900016822,7.99,
BEIS,The Insolvency Service,25/02/2021,Travel & Subsistence,Investigations & Enforcement Services,Staff Payment,900016327,35.99,
BEIS,The Insolvency Service,25/02/2021,Travel & Subsistence,Investigations & Enforcement Services,Staff Payment,900016329,21.85,
BEIS,The Insolvency Service,25/02/2021,Travel & Subsistence,Investigations & Enforcement Services,Staff Payment,900016330,21.85,
BEIS,The Insolvency Service,25/02/2021,Travel & Subsistence,Investigations & Enforcement Services,Staff Payment,900016713,31.00,
BEIS,The Insolvency Service,25/02/2021,Travel & Subsistence,Investigations & Enforcement Services,Staff Payment,900016714,19.99,
BEIS,The Insolvency Service,25/02/2021,Travel & Subsistence,Investigations & Enforcement Services,Staff Payment,900016715,4.99,
BEIS,The Insolvency Service,25/02/2021,Travel & Subsistence,Investigations & Enforcement Services,Staff Payment,900016716,21.85,
BEIS,The Insolvency Service,25/02/2021,Travel & Subsistence,Investigations & Enforcement Services,Staff Payment,900016717,5.78,
BEIS,The Insolvency Service,25/02/2021,Travel & Subsistence,Investigations & Enforcement Services,Staff Payment,900016718,28.99,
BEIS,The Insolvency Service,25/02/2021,Travel & Subsistence,Investigations & Enforcement Services,Staff Payment,900016634,5.00,
BEIS,The Insolvency Service,25/02/2021,Travel & Subsistence,Investigations & Enforcement Services,Staff Payment,900016635,5.00,
BEIS,The Insolvency Service,25/02/2021,Travel & Subsistence,Investigations & Enforcement Services,Staff Payment,900016636,5.00,
BEIS,The Insolvency Service,25/02/2021,Travel & Subsistence,Investigations & Enforcement Services,Staff Payment,900016637,4.95,
BEIS,The Insolvency Service,25/02/2021,Travel & Subsistence,Investigations & Enforcement Services,Staff Payment,900016638,3.48,
BEIS,The Insolvency Service,25/02/2021,Travel & Subsistence,Investigations & Enforcement Services,Staff Payment,900016639,5.00,
BEIS,The Insolvency Service,25/02/2021,Travel & Subsistence,Investigations & Enforcement Services,Staff Payment,900016640,5.00,
BEIS,The Insolvency Service,25/02/2021,Travel & Subsistence,Investigations & Enforcement Services,Staff Payment,900016641,17.20,
BEIS,The Insolvency Service,25/02/2021,Travel & Subsistence,Investigations & Enforcement Services,Staff Payment,900016642,7.50,
BEIS,The Insolvency Service,25/02/2021,Travel & Subsistence,Investigations & Enforcement Services,Staff Payment,900016643,10.60,
BEIS,The Insolvency Service,25/02/2021,Travel & Subsistence,Investigations & Enforcement Services,Staff Payment,900016818,5.00,
BEIS,The Insolvency Service,25/02/2021,Travel & Subsistence,Investigations & Enforcement Services,Staff Payment,900016818,63.90,
BEIS,The Insolvency Service,25/02/2021,Travel & Subsistence,Investigations & Enforcement Services,Staff Payment,900016819,75.60,
BEIS,The Insolvency Service,25/02/2021,Travel & Subsistence,Investigations & Enforcement Services,Staff Payment,900016820,115.00,
BEIS,The Insolvency Service,25/02/2021,Travel & Subsistence,Official Receiver Services,Staff Payment,900016786,6.33,
BEIS,The Insolvency Service,25/02/2021,ICT,Digital Technology Services,SUNDRY SUPPLIER,300027027,10572.24,
BEIS,The Insolvency Service,25/02/2021,Legal - Costs of Criminal Prosecutions and Advice,Legal Services Division,SUNDRY SUPPLIER,300027118,930.53,
BEIS,The Insolvency Service,25/02/2021,Legal - Costs of Criminal Prosecutions and Advice,Legal Services Division,SUNDRY SUPPLIER,300027118,6.40,
BEIS,The Insolvency Service,25/02/2021,Legal - Costs of Criminal Prosecutions and Advice,Legal Services Division,SUNDRY SUPPLIER,300027119,1181.30,
BEIS,The Insolvency Service,25/02/2021,Legal - Costs of Criminal Prosecutions and Advice,Legal Services Division,SUNDRY SUPPLIER,300027119,6.30,
BEIS,The Insolvency Service,26/02/2021,Estates - Property,People & Capability,Access 2 Comfort Ltd,300027128,750.00,980253321
BEIS,The Insolvency Service,26/02/2021,Staff Costs - Non-Perms,Finance & Commercial,ALEXANDER MANN SOLUTIONS,300027062,-667.36,7444926120
BEIS,The Insolvency Service,26/02/2021,HR,Official Receiver Services,Cabinet Office,300027206,5530.00,888801080
BEIS,The Insolvency Service,26/02/2021,HR,Official Receiver Services,Cabinet Office,300027207,1368.00,888801080
BEIS,The Insolvency Service,26/02/2021,HR,Official Receiver Services,Cabinet Office,300027208,764.50,888801080
BEIS,The Insolvency Service,26/02/2021,HR,Official Receiver Services,Cabinet Office,300027209,3037.50,888801080
BEIS,The Insolvency Service,26/02/2021,HR,Official Receiver Services,Cabinet Office,300027210,947.00,888801080
BEIS,The Insolvency Service,26/02/2021,HR,Official Receiver Services,Cabinet Office,300027211,1473.50,888801080
BEIS,The Insolvency Service,26/02/2021,HR,Official Receiver Services,Cabinet Office,300027212,847.50,888801080
BEIS,The Insolvency Service,26/02/2021,Estates - Property,Finance & Commercial,E.On,300027077,520.56,559097889
BEIS,The Insolvency Service,26/02/2021,Estates - Property,Finance & Commercial,Exeter City Council (Rent/Ins),300027186,60.55,
BEIS,The Insolvency Service,26/02/2021,Estates - Property,Finance & Commercial,GPA (C/O Montagu Evans LLP),300026952,66261.06,
BEIS,The Insolvency Service,26/02/2021,Estates - Property,Finance & Commercial,GPA (C/O Montagu Evans LLP),300026952,66261.06,
BEIS,The Insolvency Service,26/02/2021,ICT,Chief Executive Office,Granicus,300027169,1170.96,943669974
BEIS,The Insolvency Service,26/02/2021,ICT,Projects,Insight Direct (UK) Ltd,300027175,13861.80,746075129
BEIS,The Insolvency Service,26/02/2021,Off-Site Storage,Business Service Division,Iron Mountain (Uk) Ltd,300027202,2892.04,607937516
BEIS,The Insolvency Service,26/02/2021,"Printing, Stationary & Postage",Official Receiver Services,John Pye & Sons Limited,300027173,140.00,117777249
BEIS,The Insolvency Service,26/02/2021,Estates - Property,Finance & Commercial,Jones Lang Lasalle (Amas Ltd) - (Rent & Property Costs),300026655,28290.00,244155576
BEIS,The Insolvency Service,26/02/2021,Estates - Property,Finance & Commercial,Jones Lang Lasalle (Amas Ltd) - (Rent & Property Costs),300026665,-37668.00,244155576
BEIS,The Insolvency Service,26/02/2021,Estates - Property,Finance & Commercial,Jones Lang Lasalle (Amas Ltd) - (Rent & Property Costs),300026666,-9749.12,244155576
BEIS,The Insolvency Service,26/02/2021,Training,People & Capability,KPMG LLP,300027133,10129.00,791788859
BEIS,The Insolvency Service,26/02/2021,Training,People & Capability,KPMG LLP,300027203,2500.00,791788859
BEIS,The Insolvency Service,26/02/2021,Legal - Costs of Civil Litigation Disqualifications,Legal Services Division,South Square,300027171,201.60,994806956
BEIS,The Insolvency Service,26/02/2021,Training,"Strategy, Policy & Analysis",Mycsp Ltd,300027172,249.00,
BEIS,The Insolvency Service,26/02/2021,Training,Investigations & Enforcement Services,National Crime Agency,300027191,145.00,888849824
BEIS,The Insolvency Service,26/02/2021,"Printing, Stationary & Postage",Business Service Division,Quadient UK Limited,300027143,401.39,597265489
BEIS,The Insolvency Service,26/02/2021,Staff Costs - Non-Perms,Digital Technology Services,SmartSourcing,300026854,7308.00,788507869
BEIS,The Insolvency Service,26/02/2021,Staff Costs - Non-Perms,Digital Technology Services,SmartSourcing,300026864,8232.00,788507869
BEIS,The Insolvency Service,26/02/2021,Travel & Subsistence,Investigations & Enforcement Services,Staff Payment,900016840,10.00,
BEIS,The Insolvency Service,26/02/2021,Travel & Subsistence,Investigations & Enforcement Services,Staff Payment,900016840,3.50,
BEIS,The Insolvency Service,26/02/2021,Travel & Subsistence,Business Service Division,Staff Payment,900016821,35.80,
BEIS,The Insolvency Service,26/02/2021,Travel & Subsistence,Business Service Division,Staff Payment,900016821,3.49,
BEIS,The Insolvency Service,26/02/2021,Travel & Subsistence,Business Service Division,Staff Payment,900016841,7.65,
BEIS,The Insolvency Service,26/02/2021,Travel & Subsistence,Official Receiver Services,Staff Payment,900016839,1.83,
BEIS,The Insolvency Service,26/02/2021,Travel & Subsistence,Investigations & Enforcement Services,Staff Payment,900016842,102.00,
BEIS,The Insolvency Service,26/02/2021,Travel & Subsistence,Official Receiver Services,Staff Payment,900016765,139.00,
BEIS,The Insolvency Service,26/02/2021,Investigation & Enforcement,Investigations & Enforcement Services,SUNDRY SUPPLIER,300027170,11290.87,
